fUST/lending_fUST_20250831
["ID","MTS","AMOUNT","RATE_DAILY","PERIOD"]
[382415538,1756609221439,-223.72578677,0.00018451,2]
[382415539,1756609221448,-276.27421323,0.00018451,2]
[382415540,1756609221466,-250.20213936,0.00018451,2]
[382415541,1756609221476,-249.79786064,0.00018451,2]
[382415542,1756609221490,-250.20213936,0.00018451,2]
[382415543,1756609221500,-249.79786064,0.00018451,2]
[382415544,1756609221514,-250.20213936,0.00018451,2]
[382415545,1756609221524,-249.79786064,0.00018451,2]
[382415546,1756609221543,-250.20213936,0.00018451,2]
[382415547,1756609221552,-249.79786064,0.00018451,2]
[382415548,1756609221570,-250.20213936,0.00018451,2]
[382415549,1756609221579,-249.79786064,0.00018451,2]
[382415550,1756609221595,-250.20213936,0.00018451,2]
[382415551,1756609221604,-249.79786064,0.00018451,2]
[382415552,1756609221678,-250.20213936,0.00018451,2]
[382415553,1756609221688,-249.79786064,0.00018451,2]
[382415554,1756609221735,-250.20213936,0.00018451,2]
[382415555,1756609221745,-87.88210128,0.00018451,2]
[382415556,1756609226151,-412.11789872,0.00018451,2]
[382415557,1756609226181,-183.35190648,0.00018451,2]
[382415558,1756609226214,-500.0,0.00018451,2]
[382415559,1756609226243,-500.0,0.00018451,2]
[382415560,1756609226274,-500.0,0.00018451,2]
[382415561,1756609226305,-500.0,0.00018451,2]
[382415562,1756609226334,-500.0,0.00018451,2]
[382415563,1756609226363,-500.0,0.00018451,2]
[382415564,1756609226391,-500.0,0.00018451,2]
[382415565,1756609226421,-500.0,0.00018451,2]
[382415566,1756609226451,-309.0703896,0.00018451,2]
[382415567,1756609226571,-190.9296104,0.00018451,2]
[382415568,1756609226601,-319.11474832,0.00018451,2]
[382415569,1756609226631,-500.0,0.00018451,2]
[382415570,1756609226660,-500.0,0.00018451,2]
[382415571,1756609226690,-500.0,0.00018451,2]
[382415572,1756609226912,-500.0,0.00018451,2]
[382415573,1756609226940,-361.1208527,0.00018451,2]
[382415574,1756609226969,-500.0,0.00018451,2]
[382415575,1756609226996,-430.687643,0.00018451,2]
[382415576,1756609227024,-430.687643,0.00018451,2]
[382415577,1756609227051,-430.687643,0.00018451,2]
[382415578,1756609227078,-242.86607616,0.00018451,2]
[382415579,1756609227557,-187.82156684,0.00018451,2]
[382415580,1756609227584,-430.687643,0.00018451,2]
[382415581,1756609227611,-430.687643,0.00018451,2]
[382415582,1756609227637,-151.0,0.00018451,2]
[382415583,1756609227666,-151.0,0.00018451,2]
[382415584,1756609227695,-543.17310564,0.00018452,2]
[382415585,1756609227723,-151.0,0.00018452,2]
[382415586,1756609227751,-151.0,0.00018452,2]
[382415587,1756609227779,-151.0,0.00018452,2]
[382415588,1756609227805,-151.0,0.00018452,2]
[382415589,1756609227833,-608.360824,0.00018452,2]
[382415590,1756609227860,-608.360824,0.00018452,2]
[382415591,1756609227888,-608.360824,0.00018452,2]
[382415592,1756609227912,-171.57287504,0.00018452,2]
[382415593,1756609228037,-1009.95938896,0.00018452,2]
[382415594,1756609228065,-151.0,0.00018452,2]
[382415595,1756609228094,-608.360824,0.00018452,2]
[382415596,1756609228123,-1181.532264,0.00018452,2]
[382415597,1756609228152,-1181.532264,0.00018452,2]
[382415598,1756609228181,-657.46988,0.00018452,2]
[382415599,1756609228319,-1181.532264,0.00018452,2]
[382415600,1756609228347,-657.46988,0.00018452,2]
[382415601,1756609228376,-657.46988,0.00018452,2]
[382415602,1756609228405,-657.46988,0.00018452,2]
[382415603,1756609228435,-151.0,0.00018452,2]
[382415604,1756609228464,-151.0,0.00018452,2]
[382415605,1756609228493,-284.795568,0.00018452,2]
[382415606,1756609228522,-151.0,0.00018452,2]
[382415607,1756609228550,-151.0,0.00018452,2]
[382415608,1756609228579,-151.0,0.00018452,2]
[382415609,1756609228608,-430.687643,0.00018452,2]
[382415610,1756609228637,-320.472127,0.00018452,2]
[382415611,1756609228685,-430.687643,0.00018451,2]
[382415612,1756609228714,-110.215516,0.00018452,2]
[382415613,1756609228743,-430.687643,0.00018452,2]
[382415614,1756609228770,-151.0,0.00018452,2]
[382415615,1756609228798,-500.0,0.00018453,2]
[382415616,1756609228828,-500.0,0.00018453,2]
[382415617,1756609228857,-500.0,0.00018454,2]
[382415618,1756609228885,-500.0,0.00018454,2]
[382415619,1756609228913,-500.0,0.00018454,2]
[382415620,1756609228940,-500.0,0.00018454,2]
[382415621,1756609228968,-559.54265065,0.00018454,2]
[382415622,1756609228996,-200.64869876,0.00018454,2]
[382415623,1756609229096,-500.0,0.00018454,2]
[382415624,1756609229126,-381.01203201,0.00018454,2]
[382415625,1756609229303,-500.0,0.00018454,2]
[382415626,1756609229381,-661.81703191,0.00018455,2]
[382415627,1756609229411,-151.0,0.00018455,2]
[382415628,1756609229438,-151.0,0.00018455,2]
[382415629,1756609229466,-152.092977,0.00018455,2]
[382415630,1756609229494,-153.421444,0.00018455,2]
[382415631,1756609229522,-153.086999,0.00018455,2]
[382415632,1756609229551,-153.352901,0.00018455,2]
[382415633,1756609229582,-151.0,0.00018455,2]
[382415634,1756609229611,-151.760983,0.00018455,2]
[382415635,1756609229641,-151.0,0.00018455,2]
[382415636,1756609229672,-151.0,0.00018455,2]
[382415637,1756609229701,-151.0,0.00018455,2]
[382415638,1756609229730,-151.0,0.00018455,2]
[382415639,1756609229758,-151.0,0.00018455,2]
[382415640,1756609229786,-206.442411,0.00018455,2]
[382415641,1756609229814,-206.442411,0.00018455,2]
[382415642,1756609229842,-206.442411,0.00018455,2]
[382415643,1756609229869,-206.442411,0.00018455,2]
[382415644,1756609229896,-112.93956516,0.00018455,2]
[382415645,1756609230144,-151.0,0.00018451,2]
[382415646,1756609230173,-93.50284584,0.00018455,2]
[382415647,1756609230206,-206.442411,0.00018455,2]
[382415648,1756609230237,-206.442411,0.00018455,2]
[382415649,1756609230268,-206.442411,0.00018455,2]
[382415650,1756609230297,-335.192136,0.00018455,2]
[382415651,1756609230325,-335.192136,0.00018455,2]
[382415652,1756609230353,-335.192136,0.00018455,2]
[382415653,1756609230383,-151.0,0.00018455,2]
[382415654,1756609230412,-335.192136,0.00018455,2]
[382415655,1756609230443,-151.0,0.00018455,2]
[382415656,1756609230471,-151.0,0.00018455,2]
[382415657,1756609230500,-151.0,0.00018455,2]
[382415658,1756609230530,-153.927872,0.00018455,2]
[382415659,1756609230559,-166.961382,0.00018455,2]
[382415660,1756609230586,-166.961382,0.00018455,2]
[382415661,1756609230614,-166.961382,0.00018455,2]
[382415662,1756609230642,-166.961382,0.00018455,2]
[382415663,1756609230671,-151.0,0.00018455,2]
[382415664,1756609230698,-185.310145,0.00018455,2]
[382415665,1756609230726,-185.310145,0.00018455,2]
[382415666,1756609230754,-185.310145,0.00018455,2]
[382415667,1756609230782,-185.310145,0.00018455,2]
[382415668,1756609230810,-151.0,0.00018455,2]
[382415669,1756609230839,-151.0,0.00018455,2]
[382415670,1756609230866,-151.0,0.00018455,2]
[382415671,1756609230997,-151.0,0.00018451,2]
[382415672,1756609231025,-430.687643,0.00018451,2]
[382415673,1756609231054,-198.150436,0.00018455,2]
[382415674,1756609231083,-270.445229,0.00018455,2]
[382415675,1756609231112,-198.150436,0.00018455,2]
[382415676,1756609231141,-198.150436,0.00018455,2]
[382415677,1756609231169,-151.0,0.00018455,2]
[382415678,1756609231200,-198.150436,0.00018455,2]
[382415679,1756609231228,-151.0,0.00018455,2]
[382415680,1756609231256,-151.0,0.00018455,2]
[382415681,1756609231287,-151.0,0.00018455,2]
[382415682,1756609231316,-336.844539,0.00018455,2]
[382415683,1756609231345,-336.844539,0.00018455,2]
[382415684,1756609231374,-336.844539,0.00018455,2]
[382415685,1756609231402,-336.844539,0.00018455,2]
[382415686,1756609231431,-336.844539,0.00018455,2]
[382415687,1756609231461,-336.844539,0.00018455,2]
[382415688,1756609231490,-336.844539,0.00018455,2]
[382415689,1756609231518,-336.844539,0.00018455,2]
[382415690,1756609231590,-151.0,0.00018451,2]
[382415691,1756609231620,-151.0,0.00018455,2]
[382415692,1756609231649,-151.0,0.00018455,2]
[382415693,1756609231679,-151.0,0.00018455,2]
[382415694,1756609231709,-151.0,0.00018455,2]
[382415695,1756609231741,-151.0,0.00018455,2]
[382415696,1756609231778,-151.0,0.00018455,2]
[382415697,1756609231805,-151.136786,0.00018455,2]
[382415698,1756609231833,-151.136786,0.00018455,2]
[382415699,1756609231862,-151.136786,0.00018455,2]
[382415700,1756609232062,-151.136786,0.00018455,2]
[382415701,1756609232090,-151.136786,0.00018455,2]
[382415702,1756609232120,-151.136786,0.00018455,2]
[382415703,1756609232148,-151.136786,0.00018455,2]
[382415704,1756609232176,-151.136786,0.00018455,2]
[382415705,1756609232208,-254.252658,0.00018455,2]
[382415706,1756609232239,-151.0,0.00018455,2]
[382415707,1756609232269,-151.0,0.00018455,2]
[382415708,1756609232298,-151.0,0.00018455,2]
[382415709,1756609232328,-160.424535,0.00018455,2]
[382415710,1756609232356,-256.934039,0.00018455,2]
[382415711,1756609232385,-256.934039,0.00018455,2]
[382415712,1756609232413,-256.934039,0.00018455,2]
[382415713,1756609232442,-256.934039,0.00018455,2]
[382415714,1756609232470,-256.934039,0.00018455,2]
[382415715,1756609232497,-256.934039,0.00018455,2]
[382415716,1756609232525,-256.934039,0.00018455,2]
[382415717,1756609237975,-151.0,0.00018451,2]
[382415718,1756609237984,-0.136786,0.00018451,2]
[382415719,1756609237999,-150.863214,0.00018451,2]
[382415720,1756609238009,-0.273572,0.00018451,2]
[382415721,1756609238029,-151.136786,0.00018451,2]
[382415722,1756609238045,-254.252658,0.00018451,2]
[382415723,1756609238064,-151.0,0.00018451,2]
[382415724,1756609238078,-151.0,0.00018451,2]
[382415725,1756609238091,-151.0,0.00018451,2]
[382415726,1756609238104,-140.028408,0.00018451,2]
[382415727,1756609238114,-20.396127,0.00018451,2]
[382415728,1756609238127,-130.603873,0.00018451,2]
[382415729,1756609238137,-126.330166,0.00018451,2]
[382415730,1756609238151,-256.934039,0.00018451,2]
[382415731,1756609238169,-256.934039,0.00018451,2]
[382415732,1756609238182,-256.934039,0.00018451,2]
[382415733,1756609238204,-101.559141,0.00018451,2]
[382415734,1756609238213,-151.0,0.00018451,2]
[382415735,1756609238223,-4.374898,0.00018451,2]
[382415736,1756609238238,-146.625102,0.00018451,2]
[382415737,1756609238247,-110.308937,0.00018451,2]
[382415738,1756609238267,-256.934039,0.00018451,2]
[382415739,1756609238308,-135.390492,0.00018451,2]
[382415740,1756609260406,297.07,0.00024,30]
[382415741,1756609281472,250.0,0.00027397,120]
[382415742,1756609383915,278.557527,0.00013699,2]
[382415744,1756609397968,155.0,0.00027397,120]
[382415745,1756609410341,6000.0,0.0003118,60]
[382415753,1756609671148,153.0,0.00017797,2]
[382415754,1756609683758,180.3,0.00016094,2]
[382415953,1756609843730,-746.90322854,0.00018252,2]
[382415954,1756609843739,-169.36269347,0.00018254,2]
[382415957,1756609970981,430.12,0.00027397,120]
[382416051,1756610523533,264.62965,0.00013699,2]
[382416062,1756610920471,2438.49421713,0.00031205,120]
[382416108,1756611031831,-171.18194806,0.00018145,2]
[382416109,1756611031840,-559.34005868,0.00018145,2]
[382416112,1756611031853,-30.1438248,0.00018145,2]
[382416113,1756611031874,-265.22182124,0.00018145,2]
[382416114,1756611031915,-904.63435396,0.00018145,2]
[382416115,1756611031931,-330.90851595,0.00018146,2]
[382416116,1756611031948,-51.61195196,0.00018146,2]
[382416117,1756611031965,-371.00183463,0.00018146,2]
[382416118,1756611031983,-760.72574213,0.00018146,2]
[382416119,1756611032001,-1303.53512952,0.00018146,2]
[382416120,1756611032014,-721.33259819,0.00018146,2]
[382416121,1756611032029,-559.34005865,0.0001817,2]
[382416122,1756611032045,-559.34005865,0.00018195,2]
[382416123,1756611032063,-559.34005865,0.00018219,2]
[382416124,1756611032079,-300.0,0.00018243,2]
[382416125,1756611032094,-500.0,0.00018244,2]
[382416126,1756611032109,-1163.07757333,0.00018244,2]
[382416156,1756611037767,-500.0,0.00018243,2]
[382416158,1756611037777,-500.0,0.00018243,2]
[382416160,1756611037787,-500.0,0.00018243,2]
[382416162,1756611037796,-430.171218,0.00018243,2]
[382416164,1756611037809,-69.828782,0.00018243,2]
[382416166,1756611037817,-460.81204925,0.00018243,2]
[382416170,1756611037842,-39.18795075,0.00018243,2]
[382416172,1756611037851,-500.0,0.00018243,2]
[382416174,1756611037861,-500.0,0.00018243,2]
[382416176,1756611037871,-225.25648368,0.00018243,2]
[382416178,1756611037880,-500.0,0.00018243,2]
[382416180,1756611037889,-41824.08296087,0.00018244,2]
[382416182,1756611037898,-500.0,0.00018244,2]
[382416184,1756611037908,-500.0,0.00018244,2]
[382416186,1756611037917,-249.27358195,0.00018244,2]
[382416188,1756611037927,-1200.0,0.00018244,2]
[382416190,1756611037936,-151.0,0.00018244,2]
[382416192,1756611037945,-151.0,0.00018244,2]
[382416194,1756611037954,-151.0,0.00018244,2]
[382416196,1756611037963,-151.0,0.00018244,2]
[382416198,1756611037972,-151.0,0.00018244,2]
[382416200,1756611037982,-151.0,0.00018244,2]
[382416202,1756611037991,-151.0,0.00018244,2]
[382416204,1756611038000,-151.0,0.00018244,2]
[382416206,1756611038010,-151.0,0.00018244,2]
[382416208,1756611038019,-151.0,0.00018244,2]
[382416210,1756611038028,-293.103662,0.00018244,2]
[382416212,1756611038038,-151.0,0.00018244,2]
[382416214,1756611038047,-151.343345,0.00018244,2]
[382416216,1756611038058,-151.0,0.00018244,2]
[382416218,1756611038068,-151.0,0.00018244,2]
[382416220,1756611038077,-151.0,0.00018244,2]
[382416222,1756611038090,-151.0,0.00018244,2]
[382416224,1756611038100,-151.0,0.00018244,2]
[382416226,1756611038110,-151.0,0.00018244,2]
[382416228,1756611038119,-151.0,0.00018244,2]
[382416230,1756611038129,-151.0,0.00018244,2]
[382416232,1756611038138,-151.0,0.00018244,2]
[382416234,1756611038149,-151.0,0.00018244,2]
[382416236,1756611038158,-279.423575,0.00018244,2]
[382416238,1756611038167,-151.0,0.00018244,2]
[382416240,1756611038177,-151.0,0.00018244,2]
[382416242,1756611038186,-151.83901,0.00018244,2]
[382416244,1756611038195,-156.139403,0.00018244,2]
[382416246,1756611038205,-156.139403,0.00018244,2]
[382416247,1756611038214,-156.139403,0.00018244,2]
[382416248,1756611038223,-156.139403,0.00018244,2]
[382416249,1756611038232,-156.139403,0.00018244,2]
[382416250,1756611038241,-156.139403,0.00018244,2]
[382416251,1756611038250,-156.139403,0.00018244,2]
[382416252,1756611038260,-156.139403,0.00018244,2]
[382416253,1756611038269,-156.139403,0.00018244,2]
[382416254,1756611038277,-151.0,0.00018244,2]
[382416255,1756611038286,-156.139403,0.00018244,2]
[382416256,1756611038295,-151.158634,0.00018244,2]
[382416257,1756611038304,-156.139403,0.00018244,2]
[382416258,1756611038313,-156.139403,0.00018244,2]
[382416259,1756611038322,-151.0,0.00018244,2]
[382416260,1756611038331,-151.0,0.00018244,2]
[382416261,1756611038340,-151.0,0.00018244,2]
[382416262,1756611038349,-559.34005865,0.00018244,2]
[382416263,1756611038358,-151.0,0.00018244,2]
[382416264,1756611038367,-151.55384,0.00018244,2]
[382416265,1756611038376,-1000.0,0.00018244,2]
[382416266,1756611038385,-1000.0,0.00018244,2]
[382416267,1756611038394,-1000.0,0.00018244,2]
[382416268,1756611038403,-249.15,0.00018244,2]
[382416269,1756611038412,-1000.0,0.00018244,2]
[382416270,1756611038421,-249.15,0.00018244,2]
[382416271,1756611038430,-1000.0,0.00018244,2]
[382416273,1756611038439,-249.15,0.00018244,2]
[382416275,1756611038448,-1000.0,0.00018244,2]
[382416293,1756611038606,-1000.0,0.00018244,2]
[382416296,1756611038632,-249.15,0.00018244,2]
[382416298,1756611038642,-1000.0,0.00018244,2]
[382416300,1756611038651,-249.15,0.00018244,2]
[382416302,1756611038660,-249.15,0.00018244,2]
[382416304,1756611038670,-1000.0,0.00018244,2]
[382416306,1756611038679,-1032.561813,0.00018244,2]
[382416308,1756611038688,-249.15,0.00018244,2]
[382416310,1756611038697,-249.15,0.00018244,2]
[382416312,1756611038707,-249.15,0.00018244,2]
[382416314,1756611038716,-249.15,0.00018244,2]
[382416316,1756611038726,-249.15,0.00018244,2]
[382416318,1756611038736,-249.15,0.00018244,2]
[382416320,1756611038745,-217.2747,0.00018244,2]
[382416322,1756611038755,-217.2747,0.00018244,2]
[382416324,1756611038765,-217.2747,0.00018244,2]
[382416326,1756611038775,-151.0,0.00018244,2]
[382416328,1756611038784,-217.2747,0.00018244,2]
[382416330,1756611038793,-151.0,0.00018244,2]
[382416332,1756611038803,-217.2747,0.00018244,2]
[382416334,1756611038812,-217.2747,0.00018244,2]
[382416336,1756611038821,-217.2747,0.00018244,2]
[382416338,1756611038831,-151.0,0.00018244,2]
[382416340,1756611038840,-151.0,0.00018244,2]
[382416342,1756611038849,-217.2747,0.00018244,2]
[382416344,1756611038859,-184.038744,0.00018244,2]
[382416346,1756611038868,-217.2747,0.00018244,2]
[382416348,1756611038878,-217.2747,0.00018244,2]
[382416350,1756611038887,-217.2747,0.00018244,2]
[382416351,1756611038895,-217.2747,0.00018244,2]
[382416353,1756611038905,-217.2747,0.00018244,2]
[382416355,1756611038914,-217.2747,0.00018244,2]
[382416357,1756611038923,-217.2747,0.00018244,2]
[382416359,1756611038932,-217.2747,0.00018244,2]
[382416361,1756611038941,-217.2747,0.00018244,2]
[382416363,1756611038950,-151.0,0.00018244,2]
[382416365,1756611038959,-217.2747,0.00018244,2]
[382416367,1756611038968,-156.167908,0.00018244,2]
[382416369,1756611038978,-217.2747,0.00018244,2]
[382416371,1756611038987,-217.274707,0.00018244,2]
[382416373,1756611038996,-920.848189,0.00018244,2]
[382416375,1756611039005,-920.848189,0.00018244,2]
[382416377,1756611039015,-151.943352,0.00018244,2]
[382416379,1756611039034,-920.848189,0.00018244,2]
[382416381,1756611039053,-151.0,0.00018244,2]
[382416382,1756611039069,-920.848189,0.00018244,2]
[382416384,1756611039078,-151.0,0.00018244,2]
[382416386,1756611039091,-920.848189,0.00018244,2]
[382416388,1756611039100,-151.0,0.00018244,2]
[382416390,1756611039110,-151.0,0.00018244,2]
[382416392,1756611039119,-151.0,0.00018244,2]
[382416394,1756611039129,-920.848189,0.00018244,2]
[382416396,1756611039139,-151.0,0.00018244,2]
[382416398,1756611039148,-151.0,0.00018244,2]
[382416400,1756611039159,-920.848189,0.00018244,2]
[382416402,1756611039169,-151.0,0.00018244,2]
[382416404,1756611039178,-151.0,0.00018244,2]
[382416406,1756611039187,-920.848189,0.00018244,2]
[382416408,1756611039197,-151.0,0.00018244,2]
[382416410,1756611039207,-284.048892,0.00018244,2]
[382416412,1756611039216,-920.848189,0.00018244,2]
[382416414,1756611039226,-151.0,0.00018244,2]
[382416416,1756611039235,-920.848189,0.00018244,2]
[382416418,1756611039244,-151.0,0.00018244,2]
[382416419,1756611039253,-151.123548,0.00018244,2]
[382416421,1756611039263,-151.0,0.00018244,2]
[382416423,1756611039272,-178.660336,0.00018244,2]
[382416425,1756611039282,-151.0,0.00018244,2]
[382416427,1756611039291,-920.848189,0.00018244,2]
[382416429,1756611039300,-920.848189,0.00018244,2]
[382416431,1756611039309,-920.848189,0.00018244,2]
[382416433,1756611039319,-920.848189,0.00018244,2]
[382416435,1756611039328,-370000.0,0.00018245,2]
[382416437,1756611039337,-151.0,0.00018245,2]
[382416439,1756611039346,-151.0,0.00018245,2]
[382416441,1756611039355,-151.0,0.00018245,2]
[382416443,1756611039364,-151.0,0.00018245,2]
[382416445,1756611039374,-151.0,0.00018245,2]
[382416447,1756611039383,-151.0,0.00018245,2]
[382416449,1756611039392,-156.139403,0.00018245,2]
[382416451,1756611039401,-156.139403,0.00018245,2]
[382416453,1756611039411,-156.139403,0.00018245,2]
[382416455,1756611039421,-156.139403,0.00018245,2]
[382416457,1756611039430,-249.15,0.00018245,2]
[382416459,1756611039439,-249.15,0.00018245,2]
[382416461,1756611039448,-249.15,0.00018245,2]
[382416463,1756611039457,-249.15,0.00018245,2]
[382416465,1756611039466,-151.0,0.00018245,2]
[382416467,1756611039475,-500.0,0.00018273,2]
[382416469,1756611039484,-500.0,0.00018273,2]
[382416470,1756611039493,-500.0,0.00018273,2]
[382416472,1756611039502,-500.0,0.00018273,2]
[382416474,1756611039511,-500.0,0.00018273,2]
[382416476,1756611039520,-32117.06502492,0.0001832,2]
[382416478,1756611039529,-151.0,0.0001832,2]
[382416480,1756611039538,-151.0,0.0001832,2]
[382416482,1756611039547,-151.0,0.0001832,2]
[382416484,1756611039556,-151.0,0.0001832,2]
[382416486,1756611039565,-151.0,0.0001832,2]
[382416488,1756611039574,-151.0,0.0001832,2]
[382416490,1756611039583,-156.139403,0.0001832,2]
[382416492,1756611039592,-156.139403,0.0001832,2]
[382416495,1756611039611,-156.139403,0.0001832,2]
[382416497,1756611039622,-156.139397,0.0001832,2]
[382416499,1756611039632,-249.15,0.0001832,2]
[382416501,1756611039642,-249.15,0.0001832,2]
[382416503,1756611039651,-249.15,0.0001832,2]
[382416505,1756611039661,-249.15,0.0001832,2]
[382416508,1756611039671,-174.498148,0.0001832,2]
[382416510,1756611039681,-2618.2481025,0.0001833,2]
[382416512,1756611039691,-655.6,0.00018334,3]
[382416514,1756611039700,-327.8,0.00018334,3]
[382416516,1756611039710,-163.9,0.00018334,3]
[382416518,1756611039720,-491.71,0.00018334,3]
[382416520,1756611039730,-500.0,0.00018335,2]
[382416522,1756611039740,-500.0,0.00018335,2]
[382416524,1756611039750,-500.0,0.00018335,2]
[382416526,1756611039759,-500.0,0.00018335,2]
[382416528,1756611039769,-500.0,0.00018335,2]
[382416530,1756611039779,-500.0,0.00018335,2]
[382416532,1756611039789,-500.0,0.00018335,2]
[382416534,1756611039799,-500.0,0.00018335,2]
[382416536,1756611039808,-500.0,0.00018335,2]
[382416538,1756611039818,-500.0,0.00018335,2]
[382416540,1756611039828,-541.09556487,0.00018335,2]
[382416542,1756611039837,-2622.39,0.00018335,3]
[382416544,1756611039847,-1311.2,0.00018335,3]
[382416546,1756611039856,-151.0,0.0001834,2]
[382416548,1756611039866,-919.38644,0.0001834,2]
[382416550,1756611039875,-153.231806,0.0001834,2]
[382416552,1756611039885,-919.38644,0.0001834,2]
[382416554,1756611039895,-919.38644,0.0001834,2]
[382416556,1756611039905,-919.38644,0.0001834,2]
[382416558,1756611039915,-189.299439,0.0001834,2]
[382416560,1756611039924,-189.299439,0.0001834,2]
[382416562,1756611039934,-189.299439,0.0001834,2]
[382416564,1756611039943,-151.0,0.0001834,2]
[382416566,1756611039953,-189.299439,0.0001834,2]
[382416568,1756611039962,-158.051307,0.0001834,2]
[382416570,1756611039972,-151.0,0.0001834,2]
[382416572,1756611039982,-151.0,0.0001834,2]
[382416574,1756611039991,-151.0,0.0001834,2]
[382416576,1756611040001,-295.07345,0.0001834,2]
[382416578,1756611040011,-295.07345,0.0001834,2]
[382416580,1756611040021,-295.07345,0.0001834,2]
[382416582,1756611040031,-295.07345,0.0001834,2]
[382416584,1756611040046,-211.472878,0.0001834,2]
[382416586,1756611040057,-211.472878,0.0001834,2]
[382416589,1756611040067,-211.472878,0.0001834,2]
[382416591,1756611040077,-919.259806,0.0001834,2]
[382416592,1756611040089,-211.472878,0.0001834,2]
[382416594,1756611040099,-151.0,0.0001834,2]
[382416597,1756611040108,-919.259806,0.0001834,2]
[382416599,1756611040118,-151.0,0.0001834,2]
[382416601,1756611040127,-151.0,0.0001834,2]
[382416603,1756611040136,-919.259806,0.0001834,2]
[382416605,1756611040146,-151.0,0.0001834,2]
[382416607,1756611040155,-919.259806,0.0001834,2]
[382416609,1756611040165,-151.0,0.0001834,2]
[382416611,1756611040175,-945.225811,0.0001834,2]
[382416613,1756611040184,-945.225811,0.0001834,2]
[382416615,1756611040193,-945.225811,0.0001834,2]
[382416617,1756611040203,-621.117226,0.0001834,2]
[382416619,1756611040212,-945.225811,0.0001834,2]
[382416621,1756611040221,-151.0,0.0001834,2]
[382416623,1756611040231,-621.117226,0.0001834,2]
[382416625,1756611040240,-151.0,0.0001834,2]
[382416627,1756611040249,-621.117226,0.0001834,2]
[382416629,1756611040259,-151.0,0.0001834,2]
[382416631,1756611040268,-621.117226,0.0001834,2]
[382416633,1756611040277,-550.991446,0.0001834,2]
[382416634,1756611040286,-151.0,0.0001834,2]
[382416636,1756611040296,-550.991446,0.0001834,2]
[382416639,1756611040305,-151.0,0.0001834,2]
[382416641,1756611040315,-550.991446,0.0001834,2]
[382416643,1756611040324,-550.991446,0.0001834,2]
[382416645,1756611040334,-151.0,0.0001834,2]
[382416647,1756611040344,-151.0,0.0001834,2]
[382416649,1756611040354,-155.26193,0.0001834,2]
[382416650,1756611040364,-151.0,0.00018343,2]
[382416653,1756611040375,-151.0,0.00018343,2]
[382416655,1756611040385,-151.0,0.00018343,2]
[382416657,1756611040396,-151.0,0.00018343,2]
[382416659,1756611040408,-919.38644,0.00018343,2]
[382416661,1756611040419,-919.38644,0.00018343,2]
[382416663,1756611040430,-919.38644,0.00018343,2]
[382416665,1756611040441,-919.38644,0.00018343,2]
[382416667,1756611040450,-919.38644,0.00018343,2]
[382416669,1756611040460,-919.38644,0.00018343,2]
[382416671,1756611040470,-919.38644,0.00018343,2]
[382416673,1756611040484,-919.38644,0.00018343,2]
[382416675,1756611040493,-919.38644,0.00018343,2]
[382416677,1756611040503,-919.38644,0.00018343,2]
[382416679,1756611040513,-919.38644,0.00018343,2]
[382416681,1756611040523,-919.38644,0.00018343,2]
[382416683,1756611040532,-919.38644,0.00018343,2]
[382416685,1756611040542,-919.38644,0.00018343,2]